[Event "Marshall CC Premier 01-2025"]
[Site "New York"]
[Date "2025.01.06"]
[Round "5.1"]
[White "Lyutsinger, Iren"]
[Black "Rohde, Michael"]
[Result "1-0"]
[ECO "B47"]
[WhiteElo "2127"]
[BlackElo "2269"]
[Annotator "TA"]
[PlyCount "156"]
[EventDate "2025.01.03"]
[EventType "swiss"]
[EventCountry "USA"]
[SourceTitle "playchess.com"]
[Source "ChessBase"]
[SourceQuality "1"]
[TimeControl "5400+30"]

{[%evp 12,156,0,0,1,0,11,0,0,0,0,-14,-18,-16,0,0,0,6,0,0,8,0,0,0,33,16,17,0,17,0,0,-18,2,7,12,0,28,22,21,10,12,0,0,0,0,0,0,0,52,45,86,98,97,102,83,99,98,98,94,102,100,99,102,97,90,89,280,266,258,0,0,0,0,0,270,270,270,270,269,270,270,269,269,269,269,0,0,0,269,269,269,269,0,0,0,0,0,0,0,0,0,0,269,0,269,269,269,269,269,269,269,269,269,269,269,269,269,269,269,269,269,269,269,269,381,269,381,291,381,381,381,381,381,381,381,381,381,381,381,373,381,381,427,427,427,359,358]} 1. e4 {[%emt 0:00:02]} c5 {[%emt 0:00:53]} 2. Nf3 {[%emt 0:00:07]} e6 {[%emt 0:00:37]} 3. d4 {[%emt 0:00:05]} cxd4 {[%emt 0:00:04]} 4. Nxd4 {[%emt 0:00:05]} Nc6 {[%emt 0:00:08]} 5. Nc3 {[%emt 0:00:05]} Qc7 {[%emt 0:00:07]} 6. Nxc6 {[%emt 0:00:06]} bxc6 {[%emt 0:00:05]} 7. Bd3 {[%emt 0:00:04]} Nf6 {[%emt 0:00:33] Prevents Qg4.} 8. Qe2 {[%emt 0:00:08]} d6 {[%emt 0:01:27]} 9. f4 {[%emt 0:06:02]} Be7 {[%emt 0:02:12]} 10. O-O {[%emt 0:02:25]} d5 {[%emt 0:17:08]} 11. exd5 {[%emt 0:07:37]} cxd5 {[%emt 0:01:27]} 12. Nb5 {[%emt 0:06:01] Active counter play!} Qb6+ {[%emt 0:04:05]} 13. Be3 {[%emt 0:07:31]} Bc5 {[%emt 0:00:32]} 14. Bxc5 {[%emt 0:00:15]} Qxc5+ {[%emt 0:00:05]} 15. Qf2 {[%emt 0:00:22]} Qxf2+ {[%emt 0:09:09]} 16. Rxf2 {[%emt 0:01:53][%cal Bf1f2,Bf2e2,Be2b2,Bb2b4][%mdl 32]} O-O {[%emt 0:13:20][%cal Bh8f8,Bf8c8,Bc8c4][%mdl 32]} 17. Nd4 {[%emt 0:03:07]} Bb7 {[%emt 0:00:53]} 18. Re2 {[%emt 0:01:19]} g6 {[%emt 0:03:40]} 19. c3 {[%emt 0:03:05]} Rfc8 {[%emt 0:03:07]} 20. a4 {[%emt 0:03:40]} a5 {[%emt 0:03:54]} 21. Ra3 {[%emt 0:00:01]} Nd7 {[%emt 0:02:20]} 22. b4 {[%emt 0:01:01][%cal Bb2b4,Bb4a5][%mdl 32]} Nb6 {[%emt 0:01:17]} 23. Rb2 {[%emt 0:01:22]} Nc4 {[%emt 0:02:22]} 24. Bxc4 {[%emt 0:02:07]} Rxc4 {[%emt 0:00:07]} 25. bxa5 {[%emt 0:00:21]} Bc8 {[%emt 0:03:17]} 26. Rb4 {[%emt 0:05:05]} Rc7 {[%emt 0:13:53]} 27. Nb5 {[%emt 0:04:18]} Rc6 {[%emt 0:00:40]} 28. Nd4 {[%emt 0:06:21]} Rc7 {[%emt 0:00:15]} 29. Rb6 {[%emt 0:05:35]} Rxa5 {[%emt 0:06:13]} ({Black should play} 29... Kf8 $11) 30. Rc6 $14 {[%emt 0:00:02]} Rxc6 {[%emt 0:03:13]} 31. Nxc6 {[%emt 0:00:02][%mdl 4096] Endgame KRB-KRN} Rc5 {[%emt 0:00:53]} 32. Ne7+ {[%emt 0:03:11]} Kf8 {[%emt 0:00:05]} 33. Nxc8 {[%emt 0:00:03]} Rxc8 $16 {[%emt 0:00:03] KR-KR} 34. a5 {[%emt 0:01:56][%cal Ba4a5,Ba5a6,Ba6a7][%mdl 32]} Ra8 {[%emt 0:01:27]} 35. a6 {[%emt 0:00:11]} Ke7 {[%emt 0:01:03]} 36. a7 {[%emt 0:03:39]} Kd6 {[%emt 0:00:34]} 37. Kf2 $1 {[%emt 0:00:12]} Kc5 {[%emt 0:04:26]} 38. Ke3 $1 {[%emt 0:00:53]} Kb6 $2 {[%emt 0:02:00]} (38... f6 $16) 39. Kd4 $1 $18 {[%emt 0:00:45]} f6 {[%emt 0:01:34]} (39... Rxa7 40. Rxa7 Kxa7 41. Ke5 $18) 40. g4 $2 {[%emt 0:01:40]} (40. h3 $18) 40... Rxa7 $11 {[%emt 0:00:44]} 41. Rxa7 {[%emt 0:00:05]} Kxa7 {[%emt 0:00:02] KP-KP. Black is a pawn up.} 42. g5 {[%emt 0:04:21]} fxg5 $2 {[%emt 0:00:41][%mdl 8192]} (42... f5 $1 $11) 43. fxg5 $18 {[%emt 0:00:01] aiming for Ke5.} Kb6 {[%emt 0:00:22]} 44. Ke5 {[%emt 0:00:39]} Kc6 {[%emt 0:00:52]} (44... Kc5 45. Kxe6 Kc6 46. Kf7 $18) 45. Kxe6 {[%emt 0:00:17] K3P-K3P} Kc5 {[%emt 0:00:10]} 46. h4 {[%emt 0:03:08]} Kc6 {[%emt 0:00:20]} 47. Kf6 {[%emt 0:00:34]} Kc5 {[%emt 0:00:09]} 48. Ke5 {[%emt 0:01:13]} Kc6 $1 {[%emt 0:00:19]} (48... Kc4 49. Kd6 d4 50. cxd4 Kxd4 51. Ke6 Ke4 52. Kf6 Kf4 53. Kg7) 49. Ke6 {[%emt 0:00:04]} Kc5 {[%emt 0:00:11]} 50. Kd7 $1 {[%emt 0:00:18]} Kb5 {[%emt 0:01:48]} 51. Kd6 {[%emt 0:05:40]} Kc4 {[%emt 0:00:21]} 52. Ke6 {[%emt 0:00:04]} Kc5 $1 {[%emt 0:00:32]} 53. Ke7 {[%emt 0:00:01]} Kb5 $1 {[%emt 0:00:36]} 54. Kd6 $2 {[%emt 0:05:39][%mdl 8192]} (54. Kd7 $11) 54... Kc4 {[%emt 0:00:09]} 55. Ke5 {[%emt 0:00:15]} Kc5 $1 {[%emt 0:00:37]} 56. Ke6 $1 {[%emt 0:00:32]} Kc6 $1 {[%emt 0:00:32] [#]} 57. Kf6 $2 {[%emt 0:00:51]} (57. Kf7 $1 $18 {[%cal Rf7g8] Kg8 would kill now.} Kc5 58. Kg7) 57... Kb5 $2 {[%emt 0:00:20][%mdl 8192]} (57... Kc5 $1 $11 {and Black is okay.}) 58. Kg7 {[%emt 0:00:06]} Kc4 {[%emt 0:00:01]} 59. Kxh7 {[%emt 0:00:10]} Kxc3 {[%emt 0:00:11]} 60. Kxg6 {[%emt 0:00:54] KPP-KP. White is a pawn up.} d4 {[%emt 0:00:00] ( -> ...d3)} 61. h5 {[%emt 0:00:01]} d3 {[%emt 0:00:14] ( -> ...d2)} 62. h6 {[%emt 0:00:02]} d2 {[%emt 0:00:04]} 63. h7 {[%emt 0:00:02]} d1=Q {[%emt 0:00:05] ( -> ...Qd4)} 64. h8=Q+ {[%emt 0:00:04] KQ-KQ. White is a pawn up.} (64. h8=R $2 Qd6+ 65. Kh7 Qh2+ 66. Kg7 Qe5+ 67. Kh7 Qxg5 $19) 64... Kb3 {[%emt 0:00:28]} 65. Qb8+ {[%emt 0:00:17]} Ka4 {[%emt 0:00:13]} 66. Qf4+ {[%emt 0:00:22]} Ka3 {[%emt 0:00:18]} 67. Qe3+ {[%emt 0:00:37]} Ka4 {[%emt 0:00:21]} (67... Kb2 $142 68. Qe5+ Ka2 69. Qe6+ Kb1 70. Qf5+ Ka2 71. Qf2+ Kb1 72. Qf5+) 68. Qe4+ {[%emt 0:00:15]} Ka5 {[%emt 0:00:38]} (68... Kb3 {was necessary.} 69. Kf5 Qh5) 69. Qe5+ {[%emt 0:00:15]} Ka4 {[%emt 0:00:17]} 70. Kg7 {[%emt 0:01:02]} Qd7+ {[%emt 0:01:23]} 71. Kf8 {[%emt 0:00:01]} Qd3 {[%emt 0:00:33]} 72. Qe8+ {[%emt 0:00:12]} Ka5 {[%emt 0:00:23]} 73. g6 {[%emt 0:02:23]} ({Less strong is} 73. Qe5+ Ka4 74. Qe8+ Kb3 $16) 73... Qd6+ {[%emt 0:00:52]} 74. Kg8 {[%emt 0:00:30]} Qd5+ {[%emt 0:00:17]} 75. Kh7 {[%emt 0:00:06]} Qh5+ {[%emt 0:00:27] [#]} 76. Kg7 $1 {[%emt 0:00:02]} Qd5 {[%emt 0:00:23]} 77. Qe7 {[%emt 0:01:23]} Ka4 {[%emt 0:01:38]} 78. Qh4+ {[%emt 0:01:24]} Ka3 {[%emt 0:02:51]} 1-0

[Event "Marshall CC Premier 01-2025"]
[Site "New York"]
[Date "2025.01.06"]
[Round "5.3"]
[White "Hebbar, Eshaan"]
[Black "Hyatt, Jessica"]
[Result "1-0"]
[ECO "D36"]
[WhiteElo "2144"]
[BlackElo "1979"]
[Annotator "TA"]
[PlyCount "107"]
[EventDate "2025.01.03"]
[EventType "swiss"]
[EventCountry "USA"]
[SourceTitle "playchess.com"]
[Source "ChessBase"]
[SourceQuality "1"]
[TimeControl "5400+30"]

{[%evp 24,107,25,14,44,54,56,73,93,81,84,94,88,94,125,119,118,58,50,15,21,30,81,39,36,39,33,16,181,181,177,158,118,108,83,80,99,107,181,173,159,156,214,209,227,212,221,210,208,200,194,199,269,270,907,636,6199,474,29990,29991,29991,29992,29998,29969,29981,29982,29975,29976,29983,29984,29984,29985,29985,29986,29986,29986,29988,0,29986,29987,29992,29993,29993,29994,29995,29996]} 1. d4 {[%emt 0:00:27]} d5 {[%emt 0:03:48]} 2. c4 {[%emt 0:00:06]} e6 {[%emt 0:00:05]} 3. Nc3 {[%emt 0:00:04]} Nf6 {[%emt 0:00:09]} 4. cxd5 {[%emt 0:00:44]} exd5 {[%emt 0:00:07]} 5. Bg5 {[%emt 0:00:05]} Be7 {[%emt 0:00:18]} 6. e3 {[%emt 0:00:08]} c6 {[%emt 0:00:11]} 7. Bd3 {[%emt 0:00:05]} O-O {[%emt 0:00:36]} 8. Qc2 {[%emt 0:00:04]} Nbd7 {[%emt 0:00:44]} 9. Nge2 {[%emt 0:01:46]} Re8 {[%emt 0:00:33]} 10. O-O {[%emt 0:00:10]} h6 {[%emt 0:00:11]} 11. Bh4 {[%emt 0:00:08]} Ne4 {[%emt 0:00:26]} 12. Bxe7 {[%emt 0:03:30]} Qxe7 {[%emt 0:00:11]} 13. Rae1 {[%emt 0:08:47]} Nf8 {[%emt 0:02:29]} 14. Bxe4 {[%emt 0:14:26]} dxe4 {[%emt 0:00:41]} 15. Ng3 {[%emt 0:00:05]} f5 {[%emt 0:10:11]} 16. f3 $1 {[%emt 0:00:23]} exf3 {[%emt 0:00:23]} 17. Rxf3 {[%emt 0:00:07][%cal Bf1f3,Bf3f4,Bf4f2][%mdl 32]} (17. Nxf5 Bxf5 18. Qxf5 fxg2 $17) 17... g6 {[%emt 0:00:25]} 18. e4 {[%emt 0:00:56]} f4 {[%emt 0:02:24]} 19. Rxf4 {[%emt 0:07:41]} Ne6 {[%emt 0:01:20][%csl LRd4,LRf4]} 20. Qb3 {[%emt 0:01:03]} (20. Rf2 $16 {aiming for d5.} Nxd4 21. Qd2) 20... Kg7 {[%emt 0:04:12]} 21. Rf2 {[%emt 0:01:33]} Nxd4 {[%emt 0:03:55]} 22. Qc4 {[%emt 0:00:05]} Rd8 {[%emt 0:02:21]} (22... c5 $11 {keeps the balance.}) 23. Ref1 {[%emt 0:03:34]} Be6 {[%emt 0:00:39] [#] Prevents Rf7+} 24. Nd5 $1 {[%emt 0:05:02]} Nb5 {[%emt 0:08:46]} 25. Qxb5 {[%emt 0:00:24]} Bxd5 $2 {[%emt 0:00:26] [#]} (25... Rxd5 $11 {and Black stays safe.} 26. Qa4 Re5) 26. Qa5 $1 $18 {[%emt 0:00:49]} Bg8 {[%emt 0:01:25] [#]} 27. Qc3+ $1 {[%emt 0:04:40]} Kh7 {[%emt 0:00:24][%cal Od8f8]} 28. e5 {[%emt 0:00:57]} Rf8 {[%emt 0:02:51]} 29. Ne4 {[%emt 0:03:23]} Rxf2 {[%emt 0:00:18]} 30. Rxf2 {[%emt 0:00:01]} ({Reject} 30. Nxf2 Rf8 $14) 30... Rf8 {[%emt 0:00:10]} (30... Rd8 $16) 31. Nf6+ {[%emt 0:02:31]} Kg7 {[%emt 0:00:15]} 32. h4 {[%emt 0:04:24][%cal Bh2h4,Bh4h5][%mdl 32] White is more active.} Be6 {[%emt 0:11:55]} (32... Bxa2 $16 33. h5 Bb1) 33. h5 {[%emt 0:01:11]} g5 {[%emt 0:01:10]} 34. Qc2 {[%emt 0:03:44][%csl Gf6][%cal Rc2h7]} Kh8 {[%emt 0:02:34]} 35. Rd2 {[%emt 0:00:45]} Bd5 {[%emt 0:05:53]} 36. Qg6 $40 {[%emt 0:05:15][%mdl 128] White has strong attack.} Qg7 {[%emt 0:00:47]} 37. Qd3 {[%emt 0:06:55]} Qf7 {[%emt 0:04:59]} (37... Qe7 {is a better defense.} 38. Nxd5 cxd5) 38. Rf2 {[%emt 0:02:04][%cal Oe5e6]} Bxa2 $2 {[%emt 0:03:07]} (38... Qg7 39. Nxd5 cxd5) 39. Qd6 {[%emt 0:01:46]} Rc8 {[%emt 0:09:57]} 40. Nd7 {[%emt 0:01:14] Black is weak on the dark squares} (40. Ne8 $142 Qxe8 41. Qxh6+ Kg8 42. Rf5 (42. Qxg5+ Kh8 $18)) 40... Qxh5 {[%emt 0:03:18]} (40... Qe6 $18 41. Rf8+ Rxf8 42. Nxf8 (42. Qxf8+ Qg8 $18) 42... Qf7 (42... Qxd6 $2 43. exd6 Kg7 44. d7 $18)) 41. Rf8+ {[%emt 0:01:11]} Rxf8 {[%emt 0:00:12]} 42. Qxf8+ {[%emt 0:00:07] KQB-KQN. Black is two pawns up.} Bg8 {[%emt 0:00:03]} 43. Nf6 {[%emt 0:00:31][%csl Gf6][%cal Rf8g8]} Qg6 {[%emt 0:01:39]} 44. e6 {[%emt 0:00:19][%cal Be5e6,Be6e7][%mdl 32]} g4 {[%emt 0:00:24][%cal Bg5g4,Bg4g3][%mdl 32]} 45. e7 {[%emt 0:09:33]} Qb1+ {[%emt 0:00:18]} 46. Kh2 {[%emt 0:00:09][%csl Gf6][%cal Rf8g8]} g3+ {[%emt 0:00:13]} 47. Kh3 {[%emt 0:00:20][%csl Gf6][%cal Rf8g8]} Qh1+ {[%emt 0:00:53]} 48. Kg4 {[%emt 0:00:20][%csl Gf6][%cal Rf8g8]} Qd1+ {[%emt 0:01:23]} 49. Kf4 {[%emt 0:00:09][%csl Gf6][%cal Rf8g8]} Qc1+ {[%emt 0:05:52]} 50. Kg4 {[%emt 0:01:01][%csl Gf6][%cal Rf8g8]} Qd1+ $1 {[%emt 0:00:28]} 51. Kf5 {[%emt 0:00:38][%csl Gf6][%cal Rf8g8]} Qf1+ {[%emt 0:00:49]} 52. Ke5 {[%emt 0:00:44][%csl Gf6][%cal Rf8g8]} Qe2+ {[%emt 0:05:06]} 53. Kd6 {[%emt 0:00:34][%csl Gf6][%cal Rf8g8]} Qd3+ {[%emt 0:01:24]} 54. Kc7 {[%emt 0:00:16]} 1-0

[Event "Marshall CC Premier 01-2025"]
[Site "New York"]
[Date "2025.01.06"]
[Round "5.5"]
[White "Aravindakshan, Sahana"]
[Black "Ling, Chenxuan"]
[Result "0-1"]
[ECO "E49"]
[WhiteElo "1993"]
[BlackElo "2081"]
[Annotator "TA"]
[PlyCount "134"]
[EventDate "2025.01.03"]
[EventType "swiss"]
[EventCountry "USA"]
[SourceTitle "playchess.com"]
[Source "ChessBase"]
[SourceQuality "1"]
[TimeControl "5400+30"]

{[%evp 43,134,0,13,31,165,0,0,-30,-37,-50,0,0,0,-108,0,0,71,0,0,-7,-7,-5,95,-195,-197,-191,-176,-162,-141,-92,0,0,0,0,18,-6,20,19,59,-218,-221,-260,-235,-246,0,28,47,-2560,-2418,-2957,-1842,-5014,-1436,-2232,-2049,-1789,-1551,-3429,-3963,-9821,-5460,-4914,-2507,-29964,-29966,-29963,-29965,-29966,-29969,-29969,-29968,-29968,-29970,-29969,-29970,-29970,-29971,-29974,-29972,-29970,-29972,-29974,-29975,-29979,-29974,-29974,-29975,-29977,-29973,-29970,-29968,-29974,-29974]} 1. d4 {[%emt 0:00:01]} Nf6 {[%emt 0:02:15]} 2. c4 {[%emt 0:00:03]} e6 {[%emt 0:00:29]} 3. Nc3 {[%emt 0:00:03]} Bb4 {[%emt 0:00:27]} 4. e3 {[%emt 0:00:04]} O-O {[%emt 0:00:08]} 5. Bd3 {[%emt 0:00:03]} d5 {[%emt 0:00:07]} 6. a3 {[%emt 0:00:04]} Bxc3+ {[%emt 0:00:13]} 7. bxc3 {[%emt 0:00:02]} dxc4 {[%emt 0:00:02]} 8. Bxc4 {[%emt 0:00:13]} c5 {[%emt 0:00:07]} 9. Ne2 {[%emt 0:01:13]} Qc7 {[%emt 0:00:06]} 10. Bd3 {[%emt 0:00:05]} Nc6 {[%emt 0:00:04]} 11. O-O {[%emt 0:00:11]} e5 {[%emt 0:00:04]} 12. Ng3 {[%emt 0:00:23]} Rd8 {[%emt 0:03:15]} 13. Nh5 {[%emt 0:01:13]} Nxh5 {[%emt 0:08:48]} 14. Qxh5 {[%emt 0:00:06]} h6 {[%emt 0:00:23]} 15. Rb1 {[%emt 0:10:08]} exd4 {[%emt 0:11:45]} 16. cxd4 {[%emt 0:05:55]} cxd4 {[%emt 0:00:53]} 17. e4 {[%emt 0:00:07]} Qe5 {[%emt 0:17:51]} 18. Qd1 {[%emt 0:09:32]} Qe7 {[%emt 0:04:31]} 19. f4 {[%emt 0:03:02]} b6 {[%emt 0:05:34]} 20. Qh5 {[%emt 0:16:22]} Qc5 {[%emt 0:12:23]} 21. e5 {[%emt 0:05:53]} Ne7 {[%emt 0:03:07]} 22. Rf3 {[%emt 0:11:18]} g6 {[%emt 0:21:32]} 23. Qxh6 {[%emt 0:07:02]} Bg4 {[%emt 0:00:40]} (23... Nf5 $1 $14 24. Qg5 Be6) 24. Rf2 $2 {[%emt 0:06:47]} (24. f5 $1 $18 {[%cal Rf5g6]} Nxf5 (24... Qxe5 $2 25. f6 $18) 25. Bxf5 Bxf5 26. Rxf5 gxf5 (26... Qc2 $2 27. Rf1 $18) 27. Qg5+ Kf8 28. Bd2 (28. Qh6+ Ke8 $17) 28... d3+ (28... Qxa3 $2 29. Bb4+ $18) 29. Kh1) 24... Bf5 $11 {[%emt 0:01:47]} 25. Bxf5 {[%emt 0:03:22]} Nxf5 {[%emt 0:00:01]} 26. Qh3 {[%emt 0:01:01]} d3 {[%emt 0:01:11]} ({Black should try} 26... Qc3 $1 $15 27. Qf3 Qxf3 28. Rxf3 d3) 27. Bd2 $11 {[%emt 0:03:30]} Rac8 {[%emt 0:01:04]} 28. Re1 {[%emt 0:05:50]} (28. Rbf1 $11) 28... Qc2 {[%emt 0:00:39]} (28... Qxa3 $6 29. g4 Nd4 30. f5 $11) (28... Qd4 $1 $17 29. e6 fxe6 30. Rxe6 Re8 31. Rxg6+ Ng7 32. Rxg7+ Kxg7 33. Qg4+ Kf6 34. Qg5+ Ke6) 29. e6 $11 {[%emt 0:01:53]} f6 {[%emt 0:03:04]} (29... fxe6 $11 30. g4 Nd4) 30. e7 {[%emt 0:02:26]} ({White should play} 30. g4 $1 $16 {[%cal Rg4f5]} Nd4 31. Qh6 Ne2+ 32. Kg2 Qxd2 (32... Qc6+ $2 33. Rf3 $18) 33. Qxg6+ Kh8 34. Qxf6+ Kh7 35. Ref1) 30... Re8 $11 {[%emt 0:00:04]} 31. Bb4 {[%emt 0:01:57]} Qc4 {[%emt 0:00:11]} 32. g4 {[%emt 0:01:53]} Nd4 {[%emt 0:00:59] [#]} (32... Nxe7 $11 {remains equal.} 33. Qh6 (33. Rxe7 $2 Rxe7 34. g5 Qc1+ 35. Kg2 Re3 $19) (33. Bxe7 d2 $15) 33... Qf7 34. Rxe7 Rxe7 35. Bxe7 Qxe7 36. Qxg6+ Qg7) 33. Qe3 $2 {[%emt 0:02:05][%mdl 8192]} (33. Re4 $1 $16 {and life is bright.}) 33... a5 $19 {[%emt 0:01:03]} 34. Bd2 {[%emt 0:01:47]} Ne2+ {[%emt 0:00:12]} 35. Kf1 {[%emt 0:01:08]} Rc7 {[%emt 0:00:59]} 36. Rf3 {[%emt 0:00:28] [#]} Rd7 {[%emt 0:00:09]} (36... Rcxe7 $6 37. Qxd3 Qxd3 38. Rxd3 $14) (36... Nd4 $1 $17 {[%cal Rd4f3]} 37. Rc1 Qd5 38. Rxc7 Nxf3 (38... Qxf3+ 39. Qxf3 Nxf3 40. Be3 $11)) 37. Qxb6 $11 {[%emt 0:00:41]} Qd5 {[%emt 0:00:58]} 38. Kf2 {[%emt 0:00:28]} Rd6 {[%emt 0:00:15]} 39. Qe3 {[%emt 0:00:36]} Kf7 {[%emt 0:00:16]} 40. Rh3 $1 {[%emt 0:00:33]} Kg7 {[%emt 0:00:31]} 41. f5 $2 {[%emt 0:00:51][%mdl 8192]} (41. g5 $1 $14) 41... g5 $19 {[%emt 0:00:07]} 42. Qf3 {[%emt 0:00:38]} Qc5+ {[%emt 0:01:34]} (42... Rxe7 43. Qxd5 Rxd5 44. Rb1 $11) 43. Be3 {[%emt 0:00:15]} Qxa3 $2 {[%emt 0:00:40]} (43... Qc2 $19 {White must now prevent ...Nd4+.} 44. Kf1 Qa4 (44... Rxe7 45. Qa8)) 44. Bxg5 $11 {[%emt 0:00:28]} fxg5 {[%emt 0:00:19]} 45. Qe3 $2 {[%emt 0:00:18][%mdl 8192]} (45. Qxe2 $14 Qc5+ 46. Qe3 Qxe3+ 47. Rhxe3) 45... Nf4 $19 {[%emt 0:01:09]} 46. Qe5+ {[%emt 0:00:29]} Rf6 {[%emt 0:00:06]} 47. Rh6 {[%emt 0:00:47]} Qxe7 {[%emt 0:00:17]} (47... Qa2+ $142 48. Kf3 Qg2+ 49. Ke3 Nd5+ 50. Kxd3 Kxh6) 48. Qxe7+ $19 {[%emt 0:00:43]} Rxe7 {[%emt 0:00:05]} ({Weaker is} 48... Kxh6 49. Qxf6+ Kh7 50. Rxe8 Nh3+ 51. Kf1 Nf4 52. Qh8#) 49. Rxe7+ {[%emt 0:00:24]} Kxh6 {[%emt 0:00:01]} 50. Rd7 {[%emt 0:00:31]} a4 {[%emt 0:00:42]} 51. Ke3 {[%emt 0:00:32]} Ra6 {[%emt 0:00:19]} 52. h4 {[%emt 0:00:31]} Ng2+ {[%emt 0:00:23]} 53. Kxd3 {[%emt 0:00:16]} Nxh4 {[%emt 0:00:05]} 54. Kc2 {[%emt 0:00:38]} a3 {[%emt 0:00:05]} 55. Kb1 {[%emt 0:00:04]} a2+ {[%emt 0:00:19]} 56. Ka1 {[%emt 0:00:03]} Ra4 {[%emt 0:00:07]} 57. Rd6+ {[%emt 0:01:21]} Kg7 {[%emt 0:00:07]} 58. Rd7+ {[%emt 0:00:31]} Kf6 {[%emt 0:00:19]} 59. Rd6+ {[%emt 0:00:15]} Ke7 {[%emt 0:00:11]} 60. Rb6 {[%emt 0:00:38]} Rxg4 {[%emt 0:00:08]} 61. f6+ {[%emt 0:00:03]} Kf7 {[%emt 0:00:09]} 62. Kxa2 {[%emt 0:00:04]} Rf4 {[%emt 0:00:07]} 63. Kb2 {[%emt 0:00:15]} Rxf6 {[%emt 0:00:05]} 64. Rb7+ {[%emt 0:00:01]} Kg6 {[%emt 0:00:08]} 65. Kc2 {[%emt 0:00:02]} Rd6 {[%emt 0:00:06]} 66. Rb4 {[%emt 0:00:13]} Kh5 {[%emt 0:00:14]} 67. Kc1 {[%emt 0:00:18]} Rd5 {[%emt 0:00:10]} 0-1

[Event "Marshall CC Premier 01-2025"]
[Site "New York"]
[Date "2025.01.06"]
[Round "5.6"]
[White "Nasta, Kiren Vivek"]
[Black "Stern, Kevin B"]
[Result "1-0"]
[ECO "B29"]
[WhiteElo "2010"]
[BlackElo "1925"]
[Annotator "RC"]
[PlyCount "93"]
[EventDate "2025.01.03"]
[EventType "swiss"]
[EventCountry "USA"]
[SourceTitle "playchess.com"]
[Source "ChessBase"]
[SourceQuality "1"]
[TimeControl "5400+30"]

1. e4 {[%emt 0:00:05]} c5 {[%emt 0:00:23]} 2. Nf3 {[%emt 0:01:29]} Nf6 {[%emt 0:00:09]} 3. Nc3 {[%emt 0:02:03]} d5 {[%emt 0:00:06]} 4. Bb5+ {[%emt 0:00:13]} Bd7 {[%emt 0:00:11]} 5. e5 {[%emt 0:00:24]} Bxb5 {[%emt 0:03:46]} 6. Nxb5 {[%emt 0:00:05]} Nfd7 {[%emt 0:00:51]} 7. e6 {[%emt 0:00:18]} fxe6 {[%emt 0:00:41]} 8. Ng5 {[%emt 0:01:11]} Qb6 {[%emt 0:03:48]} 9. Nc3 {[%emt 0:07:55]} Nf6 {[%emt 0:04:25]} 10. Qe2 {[%emt 0:01:51]} h6 {[%emt 0:12:56]} 11. Nxe6 {[%emt 0:02:48]} Kf7 {[%emt 0:01:43]} 12. Nf4 {[%emt 0:01:26]} Qd6 {[%emt 0:04:44]} 13. Ncxd5 {[%emt 0:03:57]} Nxd5 {[%emt 0:01:17]} 14. Qh5+ {[%emt 0:00:09]} g6 {[%emt 0:00:27]} 15. Qxd5+ {[%emt 0:00:11]} Qxd5 {[%emt 0:00:42]} 16. Nxd5 {[%emt 0:00:05]} Nc6 {[%emt 0:00:08]} 17. d3 {[%emt 0:07:48]} Rd8 {[%emt 0:01:43]} 18. Ne3 {[%emt 0:01:37]} Bg7 {[%emt 0:00:58]} 19. O-O {[%emt 0:02:29]} Rd7 {[%emt 0:03:04]} 20. Rb1 {[%emt 0:00:51]} Rf8 {[%emt 0:03:31]} 21. Bd2 {[%emt 0:00:34]} Kg8 {[%emt 0:01:47]} 22. Rfd1 {[%emt 0:08:48]} Nd4 {[%emt 0:07:58]} 23. a3 {[%emt 0:06:25]} Rc8 {[%emt 0:03:44]} 24. Kf1 {[%emt 0:04:35]} h5 {[%emt 0:02:03]} 25. Bc3 {[%emt 0:02:23]} b5 {[%emt 0:06:36]} 26. Be1 {[%emt 0:03:37]} Bh6 {[%emt 0:03:05]} 27. c4 {[%emt 0:01:43]} e6 {[%emt 0:10:47]} 28. Bd2 {[%emt 0:13:28]} Rf8 {[%emt 0:05:30]} 29. Nc2 {[%emt 0:12:58]} Bg7 {[%emt 0:01:42]} 30. Nxd4 {[%emt 0:01:25]} Bxd4 {[%emt 0:00:25]} 31. f3 {[%emt 0:00:07]} Be5 {[%emt 0:05:06]} 32. cxb5 {[%emt 0:07:22]} Bxh2 {[%emt 0:01:23]} 33. Be3 {[%emt 0:00:18]} Rd5 {[%emt 0:01:20]} 34. Rbc1 {[%emt 0:00:21]} Bd6 {[%emt 0:00:53]} 35. d4 {[%emt 0:00:37]} cxd4 {[%emt 0:00:45]} 36. Rxd4 {[%emt 0:00:12]} Rxd4 {[%emt 0:02:22]} 37. Bxd4 {[%emt 0:00:08]} Bb8 {[%emt 0:00:00]} 38. a4 {[%emt 0:00:44]} e5 {[%emt 0:00:06]} 39. Be3 {[%emt 0:00:15]} e4 {[%emt 0:00:34]} 40. Rc6 {[%emt 0:00:50]} Kh7 {[%emt 0:00:56]} 41. Bxa7 {[%emt 0:01:51]} Bxa7 {[%emt 0:01:12]} 42. Rc7+ {[%emt 0:00:04]} Kh6 {[%emt 0:00:04]} 43. Rxa7 {[%emt 0:00:03]} exf3 {[%emt 0:00:03]} 44. b6 {[%emt 0:00:25]} fxg2+ {[%emt 0:00:44]} 45. Kxg2 {[%emt 0:00:03]} h4 {[%emt 0:00:16]} 46. b7 {[%emt 0:00:44]} Rb8 {[%emt 0:00:10]} 47. a5 {[%emt 0:01:02]} 1-0